bitfinex/quotes_SOLUSD_20220302
["timestamp","ask_amount","ask_price","bid_price","bid_amount"]
[1646246666739,1.67713442,101.21,101.13,47.82713247]
[1646246667139,1.92713442,101.21,101.13,47.74713247]
[1646246667640,13.70713442,101.21,101.13,0.25]
[1646246667840,13.70713442,101.21,101.12,15.0837]
[1646246668041,20.8356,101.2,101.12,15.0837]
[1646246668556,20.8356,101.2,101.12,71.37289685]
[1646246669857,24.7896,101.2,101.12,71.62289685]
[1646246670058,24.7896,101.2,101.1,14.837]
[1646246670259,60.89715414,101.2,101.1,0.25]
[1646246670458,24.3943,101.19,101.1,0.25]
[1646246670658,11.78,101.18,101.06,48.6591]
[1646246670861,14.8416,101.17,101.06,48.6591]
[1646246671058,26.6216,101.17,101.07,114.74788629]
[1646246671858,26.6216,101.17,101.09,14.8391]
[1646246672060,26.6216,101.17,101.1,55.73443286]
[1646246672259,11.78,101.17,101.1,55.98443286]
[1646246672458,22.5817,101.18,101.1,114.84443286]
[1646246673563,22.5817,101.18,101.1,55.98443286]
[1646246673761,37.4202,101.18,101.1,55.98443286]
[1646246677362,37.4202,101.18,101.1,70.82233286]
[1646246678567,6.0,101.17,101.1,70.82233286]
[1646246681767,37.4202,101.18,101.1,70.82233286]
[1646246684774,37.4202,101.18,101.11,14.8364]
[1646246684775,22.5817,101.18,101.11,14.8364]
[1646246684974,22.5817,101.18,101.12,55.60298971]
[1646246686374,22.5817,101.18,101.12,55.85298971]
[1646246686576,24.3943,101.19,101.12,55.85298971]
[1646246686777,39.2315,101.19,101.12,55.60298971]
[1646246688176,52.68862044,101.19,101.09,14.8386]
[1646246689177,52.68862044,101.19,101.1,52.39175744]
[1646246689376,52.68862044,101.19,101.1,52.64175744]
[1646246689578,6.0,101.18,101.1,52.64175744]
[1646246689776,20.8394,101.18,101.1,52.64175744]
[1646246689980,32.8694,101.18,101.1,52.39175744]
[1646246690177,34.54652044,101.18,101.1,52.39175744]
[1646246691080,34.54652044,101.18,101.1,52.64175744]
[1646246691680,34.54652044,101.18,101.1,52.39175744]
[1646246693083,32.8694,101.18,101.1,52.39175744]
[1646246693986,32.6194,101.18,101.1,52.39175744]
[1646246694186,26.6194,101.18,101.1,52.64175744]
[1646246695285,26.6194,101.18,101.1,67.47965744]
[1646246695988,24.3943,101.19,101.1,111.50175744]
[1646246696185,25.82613839,101.21,101.14,59.30209231]
[1646246696386,24.4664,101.21,101.14,118.41209231]
[1646246696986,24.4664,101.21,101.14,59.55209231]
[1646246699096,24.4664,101.21,101.14,74.38389231]
[1646246700991,24.4664,101.21,101.14,133.24389231]
[1646246701194,184.37348921,101.22,101.14,133.24389231]
[1646246702413,184.37348921,101.22,101.14,74.38389231]
[1646246703313,184.37348921,101.22,101.14,59.55209231]
[1646246703714,203.97106016,101.22,101.14,0.25]
[1646246703915,203.97106016,101.22,101.12,15.084]
[1646246704315,230.58506016,101.22,101.12,19.036]
[1646246704515,6.0,101.21,101.12,15.084]
[1646246704715,17.78,101.21,101.13,56.97147495]
[1646246705015,17.78,101.21,101.13,57.22147495]
[1646246705619,6.0,101.21,101.13,72.05467495]
[1646246707720,6.0,101.21,101.13,130.91467495]
[1646246708119,207.78108921,101.22,101.13,130.91467495]
[1646246708318,184.37348921,101.22,101.13,229.24467495]
[1646246708519,184.37348921,101.22,101.16,58.86]
[1646246708723,184.37348921,101.22,101.17,53.57514222]
[1646246708919,184.37348921,101.22,101.17,53.82514222]
[1646246709620,184.37348921,101.22,101.17,68.65224222]
[1646246709822,184.37348921,101.22,101.17,0.25]
[1646246710022,47.7199,101.24,101.14,26.7693]
[1646246710422,67.31747095,101.24,101.14,26.7693]
[1646246710623,67.31747095,101.24,101.14,85.6293]
[1646246710823,67.31747095,101.24,101.15,44.17504722]
[1646246711022,82.14767095,101.24,101.15,59.25464722]
[1646246711522,83.82481821,101.24,101.15,59.25464722]
[1646246711724,87.77681821,101.24,101.15,59.25464722]
[1646246711922,68.17924726,101.24,101.15,15.0796]
[1646246712123,6.0,101.23,101.14,22.5673]
[1646246712423,14.8339,101.22,101.14,22.8173]
[1646246712623,14.8339,101.22,101.14,22.5673]
[1646246713022,14.8339,101.22,101.14,49.72832404]
[1646246713323,49.85229319,101.22,101.14,49.72832404]
[1646246714727,49.85229319,101.22,101.14,108.58832404]
[1646246714728,26.6139,101.22,101.14,108.58832404]
[1646246715128,6.0,101.23,101.14,108.58832404]
[1646246715728,6.0,101.23,101.14,108.83832404]
[1646246716128,6.0,101.23,101.14,123.67022404]
[1646246717527,84.11234593,101.24,101.14,123.67022404]
[1646246717730,69.28114593,101.24,101.14,123.67022404]
[1646246717932,69.28114593,101.24,101.15,0.44575967]
[1646246718129,176.32538411,101.26,101.17,58.86]
[1646246718331,135.98373818,101.26,101.19,58.86]
[1646246718629,135.98373818,101.26,101.19,0.25]
[1646246718830,157.54498411,101.26,101.19,0.25]
[1646246719630,172.37238411,101.26,101.18,59.47037635]
[1646246719830,172.37238411,101.26,101.18,59.72037635]
[1646246720032,174.04953137,101.26,101.17,22.8813]
[1646246720231,185.82953137,101.26,101.14,3.951]
[1646246720437,3.952,101.25,101.12,3.952]
[1646246720634,11.78,101.24,101.13,24.4319]
[1646246720833,14.8338,101.22,101.13,24.6819]
[1646246721032,26.6138,101.22,101.13,45.35715567]
[1646246721234,6.0,101.21,101.13,45.35715567]
[1646246721433,41.01839319,101.21,101.13,45.35715567]
[1646246722232,14.8367,101.2,101.13,45.35715567]
[1646246724032,15.0867,101.2,101.13,45.35715567]
[1646246724833,6.0,101.19,101.13,45.35715567]
[1646246725236,23.2968,101.21,101.13,104.46715567]
[1646246727035,23.2968,101.21,101.13,119.30065567]
[1646246727639,49.9118,101.21,101.11,98.6639]
[1646246727838,6.0,101.2,101.11,23.0318]
[1646246728040,17.78,101.2,101.11,38.1176]
[1646246728637,17.78,101.2,101.12,59.17149776]
[1646246730041,32.6165,101.2,101.12,59.17149776]
[1646246732040,32.8665,101.2,101.12,59.17149776]
[1646246734342,34.54364726,101.2,101.12,59.17149776]
[1646246735041,432.23189042,101.2,101.12,59.17149776]
[1646246735742,431.98189042,101.2,101.12,59.17149776]
[1646246737667,435.93589042,101.2,101.12,59.17149776]
[1646246738368,431.98189042,101.2,101.12,59.17149776]
[1646246738968,223.90747554,101.2,101.12,59.17149776]
[1646246739168,223.90747554,101.2,101.13,0.46687242]
[1646246739469,245.30299941,101.2,101.11,23.0318]
[1646246739668,245.55299941,101.2,101.11,23.0318]
[1646246740370,245.55299941,101.2,101.12,43.73186204]
[1646246741070,249.50699941,101.2,101.12,43.73186204]
[1646246741470,250.95046325,101.2,101.12,43.73186204]
[1646246741872,250.95046325,101.2,101.09,18.7925]
[1646246742073,250.95046325,101.2,101.09,19.0425]
[1646246742074,22.8942,101.19,101.09,19.0425]
[1646246742272,26.6197,101.18,101.09,19.0425]
[1646246742573,28.22841492,101.18,101.09,3.954]
[1646246742775,29.06982527,101.17,101.09,3.954]
[1646246742972,11.78,101.16,101.09,3.954]
[1646246743171,3.955,101.15,101.09,3.954]
[1646246743372,26.6269,101.14,101.09,3.954]
[1646246744875,48.7157572,101.14,101.09,3.954]
[1646246745877,6.0,101.13,101.09,3.954]
[1646246746578,6.0,101.13,101.09,48.60072146]
[1646246746780,6.0,101.13,101.09,3.954]
[1646246747281,6.0,101.13,101.05,81.5588]
[1646246747480,6.0,101.13,101.05,81.8088]
[1646246747684,26.6269,101.14,101.06,14.8435]
[1646246747880,26.6269,101.14,101.06,61.39396381]
[1646246749581,11.78,101.14,101.06,61.39396381]
[1646246750181,33.8688572,101.14,101.06,61.39396381]
[1646246750984,34.1188572,101.14,101.06,61.39396381]
[1646246751184,48.9638572,101.14,101.06,61.39396381]
[1646246751383,26.625,101.14,101.06,120.25396381]
[1646246751583,3.956,101.16,101.08,116.7536589]
[1646246751784,6.0,101.15,101.08,117.0036589]
[1646246751982,52.3489,101.17,101.08,117.0036589]
[1646246752785,67.1899,101.17,101.08,15.0906]
[1646246752986,6.0,101.16,101.06,23.1281]
[1646246753188,11.78,101.15,101.06,23.1281]
[1646246753787,11.78,101.15,101.07,54.30845699]
[1646246753985,12.03,101.15,101.07,54.30845699]
[1646246754889,12.03,101.15,101.07,54.55845699]
[1646246755087,26.8749,101.15,101.07,54.55845699]
[1646246758390,26.6249,101.15,101.07,54.55845699]
[1646246758796,26.6249,101.15,101.06,23.1281]
[1646246758994,77.41087873,101.15,101.05,5.0]
[1646246759193,77.41087873,101.15,101.04,112.9]
[1646246759194,78.72902485,101.15,101.02,46.1489]
[1646246759497,91.14386768,101.15,101.02,46.1489]
[1646246759693,78.72902485,101.15,101.02,46.1489]
[1646246759896,78.72902485,101.15,101.03,55.63267169]
[1646246760096,6.0,101.14,101.03,55.63267169]
[1646246760293,15.736,101.13,101.03,55.63267169]
[1646246760495,54.79708225,101.13,101.03,55.63267169]
[1646246760695,53.31337873,101.13,101.03,55.63267169]
[1646246760893,47.6800572,101.13,101.03,55.63267169]
[1646246761095,160.97484913,101.11,101.03,55.63267169]
[1646246761897,160.97484913,101.11,101.05,56.14619522]
[1646246762094,160.97484913,101.11,101.05,56.39619522]
[1646246764595,160.97484913,101.11,101.05,71.24109522]
[1646246764894,160.97484913,101.11,101.05,56.39619522]
[1646246767004,160.97484913,101.11,101.05,56.14619522]
[1646246768005,175.82394913,101.11,101.03,14.8471]
[1646246768204,175.82394913,101.11,101.02,46.1489]
[1646246768403,6.0,101.1,101.02,46.1489]
[1646246768806,175.82394913,101.11,101.02,46.1489]
[1646246769005,160.97484913,101.11,101.03,46.21547855]
[1646246769404,160.97484913,101.11,101.04,14.8468]
[1646246769605,160.97484913,101.11,101.05,54.45365509]
[1646246769821,11.78,101.1,101.02,46.1489]
[1646246770023,6.0,101.09,101.0,117.9]
[1646246770730,6.0,101.09,101.01,48.45947695]
[1646246770731,11.78,101.08,101.01,48.45947695]
[1646246771824,6.0,101.09,101.01,48.45947695]
[1646246772024,24.2661,101.1,101.01,48.45947695]
[1646246772226,24.2661,101.1,101.03,14.8482]
[1646246772424,24.2661,101.1,101.04,58.74028703]
[1646246772729,24.2661,101.1,101.06,43.39020143]
[1646246772927,187.60474913,101.11,101.06,43.39020143]
[1646246773325,172.75484913,101.11,101.06,43.39020143]
[1646246773528,160.97484913,101.11,101.06,42.89020143]
[1646246773729,160.97484913,101.11,101.06,43.14020143]
[1646246774924,24.0077,101.13,101.06,43.14020143]
[1646246775124,24.0077,101.13,101.06,57.98410143]
[1646246777229,22.7999,101.14,101.07,14.8423]
[1646246777430,22.7999,101.14,101.07,0.25]
[1646246777630,32.15892387,101.17,101.08,0.47641549]
[1646246777832,6.0,101.16,101.08,51.28058887]
[1646246778030,24.3448,101.17,101.08,109.91417338]
[1646246778730,24.3448,101.17,101.11,49.42327276]
[1646246779333,24.3448,101.17,101.11,49.67327276]
[1646246780436,198.36062855,101.18,101.11,49.67327276]
[1646246782239,183.52202855,101.18,101.11,49.67327276]
[1646246782439,183.52202855,101.18,101.11,108.53327276]
[1646246783240,183.52202855,101.18,101.12,5.44497668]
[1646246783441,183.52202855,101.18,101.13,57.65515982]
[1646246783641,183.52202855,101.18,101.13,72.73755982]
[1646246783942,22.5226,101.21,101.13,72.73755982]
[1646246784141,22.5226,101.21,101.14,0.5345644]
[1646246784340,22.5226,101.21,101.13,72.73755982]
[1646246784546,42.90152387,101.21,101.13,72.73755982]
[1646246785548,22.5226,101.21,101.13,72.73755982]
[1646246786144,22.5226,101.21,101.13,77.73755982]
[1646246786344,22.5226,101.21,101.13,72.73755982]
[1646246786949,37.3571,101.21,101.13,72.73755982]
[1646246787746,22.5226,101.21,101.13,72.73755982]
[1646246789750,22.5226,101.21,101.13,72.48755982]
[1646246789951,37.3571,101.21,101.13,72.48755982]
[1646246790858,37.3571,101.21,101.13,57.65515982]
[1646246791057,37.3571,101.21,101.13,57.90515982]
[1646246791655,6.0,101.2,101.13,57.90515982]
[1646246791856,37.3571,101.21,101.13,57.90515982]
[1646246792661,6.0,101.2,101.13,57.90515982]
[1646246792861,37.3571,101.21,101.13,57.90515982]
[1646246793662,37.6071,101.21,101.13,57.90515982]
[1646246795164,37.3571,101.21,101.13,72.73865982]
[1646246795364,22.5226,101.21,101.13,72.73865982]
[1646246796272,37.3574,101.21,101.13,72.73865982]
[1646246797274,22.5226,101.21,101.13,72.73865982]
[1646246802578,37.3574,101.21,101.13,72.73865982]
[1646246803686,37.3574,101.21,101.13,15.0835]
[1646246803884,14.8365,101.2,101.13,0.25]
[1646246804085,6.0,101.19,101.12,23.6004]
[1646246804484,14.8365,101.2,101.12,23.3504]
[1646246804683,14.8365,101.2,101.04,138.66365597]
[1646246804684,17.78,101.19,101.04,138.66365597]
[1646246804885,23.7543,101.18,101.1,44.03336732]
[1646246805089,14.8419,101.17,101.07,19.8414]
[1646246805289,11.78,101.16,101.07,19.8414]
[1646246805489,36.5597,101.16,101.05,47.9894]
[1646246806094,36.5597,101.16,101.06,49.34925155]
[1646246806692,40.5157,101.16,101.06,49.59925155]
[1646246806893,36.5597,101.16,101.06,49.59925155]
[1646246807094,14.8443,101.15,101.06,64.44315155]
[1646246807692,14.8443,101.15,101.06,64.19315155]
[1646246808093,15.0943,101.15,101.06,64.19315155]
[1646246809195,15.0943,101.15,101.08,50.35716851]
[1646246809396,24.7797,101.16,101.08,50.35716851]
[1646246809597,25.0297,101.16,101.08,50.60716851]
[1646246810298,24.7797,101.16,101.08,109.46716851]
[1646246810505,217.75244578,101.19,101.08,109.46716851]
[1646246810699,209.15352191,101.19,101.08,109.46716851]
[1646246810903,205.19852191,101.19,101.09,0.47888483]
[1646246811101,205.19852191,101.19,101.08,114.46716851]
[1646246811300,205.19852191,101.19,101.09,82.6267]
[1646246811503,193.41852191,101.19,101.1,54.66321175]
[1646246811701,193.41852191,101.19,101.1,54.91321175]
[1646246812101,193.41852191,101.19,101.1,69.75101175]
[1646246813202,213.79744578,101.19,101.1,69.75101175]
[1646246813809,178.57972191,101.19,101.11,14.8362]
[1646246814004,178.57972191,101.19,101.11,0.25]
[1646246815105,178.57972191,101.19,101.1,69.75031175]
[1646246817006,193.41742191,101.19,101.1,69.75031175]
[1646246818208,193.41742191,101.19,101.1,128.61031175]
[1646246818408,178.57972191,101.19,101.11,14.8362]
[1646246818608,178.57972191,101.19,101.12,52.79552875]
[1646246818810,178.57972191,101.19,101.12,53.04552875]
[1646246820210,6.0,101.18,101.12,53.04552875]
[1646246820416,6.0,101.18,101.12,126.74022875]
[1646246820814,6.0,101.18,101.12,130.69422875]
[1646246821011,6.0,101.18,101.12,135.69422875]
[1646246821212,155.85502191,101.19,101.12,135.69422875]
[1646246822015,24.4217,101.21,101.13,0.62142601]
[1646246822212,24.4217,101.21,101.14,123.04283922]
[1646246822430,24.4217,101.21,101.14,123.29283922]
[1646246824538,24.4217,101.21,101.14,64.18283922]
[1646246824735,24.4217,101.21,101.14,49.35153922]
[1646246825535,44.80062387,101.21,101.14,49.35153922]
[1646246825736,48.75262387,101.21,101.14,49.35153922]
[1646246826939,43.2088,101.21,101.14,49.35153922]
[1646246827138,6.0,101.2,101.14,49.60153922]
[1646246827937,6.0,101.2,101.14,0.25]
[1646246828142,54.40290613,101.2,101.1,3.952]
[1646246828339,3.954,101.19,101.09,28.6414]
[1646246828541,39.5549,101.19,101.09,23.6414]
[1646246828740,62.76882766,101.19,101.09,23.6414]
[1646246829040,61.09150613,101.19,101.1,106.02378622]
[1646246829240,57.13750613,101.19,101.1,106.02378622]
[1646246829441,57.13750613,101.19,101.1,47.16378622]
[1646246829843,23.8209,101.19,101.1,70.51558622]
[1646246830040,24.4217,101.21,101.11,157.11]
[1646246830342,26.9992,101.25,101.13,157.11]
[1646246830640,24.0208,101.25,101.17,58.86]
[1646246830841,202.1009454,101.26,101.19,58.86]
[1646246831043,177.1251454,101.26,101.21,58.86]
[1646246831240,177.1251454,101.26,101.22,44.068835]
[1646246831442,177.1251454,101.26,101.22,44.318835]
[1646246831644,3.951,101.29,101.22,103.178835]
[1646246831844,3.951,101.29,101.22,0.25]
[1646246832240,25.48760613,101.29,101.22,0.25]
[1646246832645,25.48760613,101.29,101.19,5.25]
[1646246832843,4.201,101.29,101.2,46.44036526]
[1646246833042,19.0244,101.29,101.22,53.39945306]
[1646246833242,18.7744,101.29,101.22,53.64945306]
[1646246833442,14.8234,101.29,101.22,112.50945306]
[1646246833644,50.8284,101.3,101.22,112.50945306]
[1646246833842,25.48660613,101.31,101.22,112.50945306]
[1646246834646,20.8209,101.3,101.22,112.50945306]
[1646246834945,3.95,101.29,101.2,5.0]
[1646246835144,21.53660613,101.29,101.2,0.25]
[1646246835345,21.53660613,101.28,101.19,6.0]
[1646246835744,21.53660613,101.28,101.2,49.99154511]
[1646246836148,36.36120613,101.28,101.2,49.99154511]
[1646246836347,36.36120613,101.28,101.19,6.0]
[1646246836548,36.61120613,101.28,101.19,6.0]
[1646246836747,36.61120613,101.28,101.19,6.25]
[1646246836946,21.53660613,101.27,101.19,6.0]
[1646246837252,36.36260613,101.27,101.19,6.0]
[1646246837449,36.36260613,101.27,101.19,56.15751492]
[1646246838047,14.826,101.27,101.19,56.15751492]
[1646246838248,20.8269,101.26,101.16,23.9676]
[1646246838449,20.8269,101.26,101.15,87.8015]
[1646246838648,11.78,101.25,101.15,72.973]
[1646246838852,38.94078886,101.25,101.15,72.973]
[1646246839094,23.20878886,101.24,101.15,72.973]
[1646246839249,11.78,101.23,101.14,46.25325899]
[1646246839549,34.98878886,101.23,101.14,46.25325899]
[1646246839949,33.31146733,101.23,101.14,46.50325899]
[1646246840151,14.8336,101.22,101.14,46.50325899]
[1646246840950,14.8336,101.22,101.14,46.25325899]
[1646246842050,14.8336,101.22,101.13,47.0728]
[1646246842352,48.14506733,101.22,101.1,84.52144003]
[1646246842649,3.954,101.21,101.08,3.954]
[1646246842849,14.8426,101.19,101.08,3.954]
[1646246843049,26.6226,101.19,101.09,60.25596786]
[1646246843248,3.954,101.18,101.09,217.36596786]
[1646246843449,14.8426,101.19,101.09,217.36596786]
[1646246843650,19.0466,101.19,101.09,119.11596786]
[1646246844053,6.0,101.18,101.09,119.11596786]
[1646246845053,6.0,101.18,101.1,14.837]
[1646246845251,20.8388,101.18,101.1,0.25]
[1646246846353,20.8388,101.18,101.1,52.84554083]
[1646246846553,20.8388,101.18,101.1,53.09554083]
[1646246847455,21.0888,101.18,101.1,53.09554083]
[1646246848758,21.0888,101.18,101.08,18.7928]
[1646246848958,11.78,101.17,101.08,3.954]
[1646246849167,18.7994,101.16,101.08,3.954]
[1646246849361,30.5794,101.16,101.08,3.954]
[1646246849561,26.6244,101.16,101.08,3.954]
[1646246849861,26.6244,101.16,101.08,54.40541896]
[1646246850265,26.6244,101.16,101.08,54.65541896]
[1646246850463,26.6244,101.16,101.08,4.204]
[1646246850662,26.6244,101.16,101.06,46.0862]
[1646246850861,27.89031773,101.16,101.04,14.8449]
[1646246851063,51.10005696,101.16,100.94,147.28]
[1646246851264,188.28088018,101.15,101.03,5.0]
[1646246851461,26.6342,101.14,100.97,49.60491064]
[1646246851664,3.958,101.13,100.97,49.60491064]
[1646246851863,37.68167862,101.12,100.97,49.60491064]
[1646246852063,6.0,101.11,100.97,49.60491064]
[1646246852263,13.44596664,101.1,100.97,49.60491064]
[1646246852473,39.43638186,101.1,100.97,49.60491064]
[1646246852664,55.1667719,101.09,100.97,49.60491064]
[1646246852865,11.78,101.08,100.97,49.60491064]
[1646246853064,3.959,101.07,100.97,49.60491064]
[1646246853267,28.11692777,101.08,100.97,49.60491064]
[1646246853463,15.739,101.09,100.97,51.65395067]
[1646246853964,47.3409,101.1,100.99,45.48830114]
[1646246853965,61.21291318,101.1,100.99,45.48830114]
[1646246854164,61.21291318,101.1,100.99,45.73830114]
[1646246854364,3.958,101.09,100.99,48.28734117]
[1646246854565,17.61062541,101.09,100.99,69.31467413]
[1646246854765,13.65262541,101.09,100.99,69.31467413]
[1646246855371,11.78,101.09,100.99,48.28734117]
[1646246855569,34.3172,101.11,101.0,0.44212675]
[1646246855769,22.5372,101.11,100.99,60.06734117]
[1646246855970,22.5372,101.11,101.01,58.77615166]
[1646246856191,6.0,101.1,101.01,56.47711163]
[1646246856389,25.052,101.1,100.99,2.54904003]
[1646246856591,26.72573505,101.1,100.99,2.54904003]
[1646246856791,30.68373505,101.1,100.99,2.54904003]
[1646246856991,30.93373505,101.1,100.97,63.83244003]
[1646246857191,32.61255946,101.1,100.98,6.0]
[1646246857393,32.61255946,101.1,100.99,52.08590145]
[1646246857995,74.85945946,101.1,100.99,66.93850145]
[1646246858193,25.34055946,101.1,100.99,66.93850145]
[1646246858393,25.34055946,101.1,100.99,52.08590145]
[1646246858592,19.45373505,101.1,100.99,52.08590145]
[1646246858792,42.59480746,101.14,101.0,76.64]
[1646246858993,41.55080746,101.14,101.01,51.72508864]
[1646246859192,6.0,101.13,101.02,11.78]
[1646246859493,6.0,101.13,101.03,58.23776775]
[1646246859693,3.956,101.12,101.03,58.48776775]
[1646246859897,17.73147104,101.12,101.03,58.48776775]
[1646246860095,6.0,101.11,101.03,58.48776775]
[1646246861797,6.0,101.11,101.02,14.848]
[1646246861999,11.78,101.12,101.02,14.848]
[1646246862201,6.0,101.11,101.02,14.848]
[1646246862798,6.0,101.11,101.03,53.86015235]
[1646246862998,35.4783,101.13,101.03,53.86015235]
[1646246863200,6.0,101.12,101.03,53.86015235]
[1646246863398,17.78,101.12,101.03,54.11015235]
[1646246863597,19.60830688,101.12,101.03,0.25]
[1646246863799,19.60830688,101.12,101.02,0.25]
[1646246863800,58.6908753,101.12,101.02,0.25]
[1646246863999,60.36969971,101.12,101.01,0.25]
[1646246864201,60.36969971,101.12,101.0,46.9248]
[1646246864401,56.41369971,101.12,101.0,46.9248]
[1646246864600,56.41369971,101.12,101.0,105.7848]
[1646246864800,65.95869971,101.12,101.0,46.9248]
[1646246865602,66.20869971,101.12,101.0,93.23593878]
[1646246866005,66.20869971,101.12,101.0,107.58773878]
[1646246866203,60.62169971,101.12,101.0,107.58773878]
[1646246867412,60.62169971,101.12,101.0,107.83773878]
[1646246867607,60.62169971,101.12,101.0,151.84593878]
[1646246867804,40.34463129,101.12,101.0,151.84593878]
[1646246868005,32.8795,101.12,101.0,151.84593878]
[1646246868408,32.8795,101.12,101.0,156.84593878]
[1646246868606,3.958,101.11,101.0,156.84593878]
[1646246868906,18.8075,101.12,101.0,261.87593878]
[1646246869105,27.6563,101.13,101.04,14.8462]
[1646246869308,27.6563,101.13,101.05,59.17101198]
[1646246869605,27.6563,101.13,101.05,59.42101198]
[1646246870006,5.63482441,101.15,101.05,118.28101198]
[1646246870208,5.63482441,101.17,101.08,55.93091555]
[1646246870407,5.0,101.18,101.09,0.63107322]
[1646246870609,5.0,101.18,101.1,48.94381628]
[1646246870808,180.06548832,101.19,101.1,49.19381628]
[1646246871408,180.06548832,101.19,101.11,14.8358]
[1646246871608,180.06548832,101.19,101.11,15.0858]
[1646246872007,1.67882441,101.18,101.1,48.94381628]
[1646246872208,3.954,101.17,101.1,49.19381628]
[1646246872406,26.12634968,101.17,101.1,0.25]
[1646246872808,22.17234968,101.16,101.1,0.25]
[1646246873206,22.17234968,101.16,101.07,65.11]
[1646246873408,26.61820578,101.18,101.08,111.74216053]
[1646246873610,23.2393,101.18,101.08,64.91216053]
[1646246873807,23.2393,101.18,101.08,123.77216053]
[1646246874206,6.0,101.17,101.08,123.77216053]
[1646246874608,6.0,101.17,101.08,64.91216053]
[1646246874809,6.0,101.17,101.08,53.13216053]
[1646246875007,26.36101634,101.17,101.08,53.13216053]
[1646246875510,26.36101634,101.17,101.08,0.25]
[1646246875708,26.36101634,101.17,101.06,87.6841]
[1646246876008,41.20221634,101.17,101.08,14.84]
[1646246876210,41.45221634,101.17,101.08,15.09]
[1646246876707,11.78,101.16,101.08,0.25]
[1646246876907,13.60853355,101.16,101.08,0.25]
[1646246877107,33.96954989,101.16,101.08,0.25]
[1646246877308,33.96954989,101.16,101.07,45.68295315]
[1646246877309,1.67882441,101.15,101.07,45.68295315]
[1646246877708,6.0,101.14,101.07,45.68295315]
[1646246878511,6.0,101.14,101.07,0.25]
[1646246878713,6.0,101.14,101.06,38.6669]
[1646246879111,6.0,101.14,101.06,15.0928]
[1646246879512,6.0,101.14,101.07,59.36557228]
[1646246879713,38.2262,101.16,101.07,74.45787228]
[1646246879916,6.0,101.15,101.07,74.45787228]
[1646246880314,6.0,101.15,101.07,15.0923]
[1646246880516,24.51893864,101.15,101.07,0.25]
[1646246880717,36.29893864,101.15,101.03,83.3829]
[1646246880915,40.25493864,101.15,101.03,88.3829]
[1646246881115,36.5798,101.15,101.06,14.8436]
[1646246881317,6.0,101.15,101.07,46.09487405]
[1646246881517,6.0,101.15,101.07,46.34487405]
[1646246882215,6.0,101.15,101.07,15.0919]
[1646246882415,6.0,101.15,101.05,5.0]
[1646246882617,23.98765922,101.15,101.03,26.82194003]
[1646246882815,23.98765922,101.15,101.04,6.0]
[1646246883217,23.98765922,101.15,101.05,53.65830922]
[1646246883515,38.83235922,101.15,101.07,49.02514104]
[1646246883719,1.67882441,101.14,101.04,6.0]
[1646246883917,1.67882441,101.14,101.04,6.25]
[1646246884116,15.49358192,101.14,101.04,6.25]
[1646246884321,13.81475751,101.14,101.04,6.25]
[1646246884716,13.81475751,101.14,101.05,43.81857669]
[1646246884917,13.81475751,101.14,101.05,44.06857669]
[1646246885116,28.66085751,101.14,101.05,58.91367669]
[1646246885717,30.33968192,101.14,101.05,44.06857669]
[1646246886117,30.58968192,101.14,101.05,44.06857669]
[1646246886317,30.58968192,101.14,101.05,0.25]
[1646246886520,30.58968192,101.14,101.04,6.25]
[1646246886718,30.58968192,101.14,101.04,0.25]
[1646246886922,53.72936242,101.13,101.02,23.4947]
[1646246887219,11.78,101.12,101.02,23.4947]
[1646246887419,29.99443917,101.12,101.03,50.21056869]
[1646246887619,6.0,101.11,101.03,50.21056869]
[1646246888620,20.85,101.11,101.03,50.46056869]
[1646246888820,20.85,101.11,101.03,0.25]
[1646246889023,1.67882441,101.1,101.02,15.0996]
[1646246889222,1.67882441,101.1,101.02,0.25]
[1646246889425,1.67882441,101.1,101.0,23.6472]
[1646246889846,1.67882441,101.1,101.01,65.21596461]
[1646246890024,1.67882441,101.1,101.01,15.1011]
[1646246890226,15.15197724,101.1,101.0,23.3972]
[1646246890624,16.53442441,101.09,100.98,5.0]
[1646246890826,11.78,101.08,100.98,5.0]
[1646246891024,13.45882441,101.08,100.99,56.90400844]